fUST/lending_fUST_20240501
["ID","MTS","AMOUNT","RATE_DAILY","PERIOD"]
[325121831,1714525846523,-691.97851531,0.00273973,120]
[325121839,1714525884259,189.3964787,0.00018,2]
[325121840,1714525888319,4.09781908,0.00019,2]
[325121841,1714525996789,154.73694719,9.999e-05,2]
[325121842,1714526037899,-154.73694719,0.00020911,2]
[325121843,1714526037922,-189.27431046,0.00020912,2]
[325121844,1714526037951,-155.3563839,0.00020912,2]
[325121845,1714526037976,-156.20955349,0.00020912,2]
[325121846,1714526038000,-155.61034914,0.00020912,2]
[325121847,1714526038024,-4358.81245582,0.00020913,2]
[325121848,1714526094219,-6059.97004803,0.00020891,2]
[325121849,1714526094244,-1312.75517414,0.00020912,2]
[325121850,1714526094266,-468.79013614,0.00020912,2]
[325121851,1714526094289,-564.88021518,0.00020912,2]
[325121852,1714526094310,-186.25450795,0.00020913,2]
[325121853,1714526094333,-284.9878188,0.00020913,2]
[325121854,1714526094355,-10622.36209976,0.00020913,2]
[325121855,1714526108168,475.26109045,9.999e-05,2]
[325121856,1714526197015,-474.83160862,0.00020912,2]
[325121857,1714526197041,-683.14084397,0.00020912,2]
[325121858,1714526197068,-186.80420864,0.00020913,2]
[325121859,1714526197095,-24900.0,0.00021,2]
[325121860,1714526197122,-636.56396272,0.00021818,2]
[325121861,1714526197248,-166.666666,0.00021918,2]
[325121862,1714526197276,-166.666666,0.00022431,2]
[325121863,1714526197303,-197.443161,0.00022466,2]
[325121864,1714526197332,-166.666666,0.00022944,2]
[325121865,1714526197362,-166.666666,0.00023456,2]
[325121866,1714526197388,-166.666666,0.00023969,2]
[325121867,1714526197416,-166.666666,0.00024482,2]
[325121868,1714526200648,7170.2480388,9.999e-05,2]
[325121870,1714526750807,-1491.40548349,0.00020912,2]
[325121871,1714526750833,-302.8984856,0.00020912,2]
[325121874,1714526837103,-386.14266827,0.00020912,2]
[325121875,1714526837122,-409.15735762,0.00020913,2]
[325121876,1714526837142,-1838.15171346,0.0003,30]
[325121877,1714526841159,-8247.84828654,0.0003,30]
[325121878,1714526841180,-150.0,0.00030557,3]
[325121879,1714526841200,-239.15022535,0.00038,30]
[325121880,1714526841219,-162.48650385,0.00047177,2]
[325121881,1714526841240,-151.0,0.0005,120]
[325121882,1714526841260,-263.4031,0.00054964,30]
[325121883,1714526841282,-604.54940717,0.00054967,4]
[325121884,1714526841304,-306.0,0.00069507,60]
[325121885,1714526841324,-152.78647308,0.00070171,120]
[325121886,1714526841348,-151.9069551,0.00070191,120]
[325121887,1714526841372,-150.0,0.00082325,3]
[325121888,1714526841392,-151.9069551,0.00086591,120]
[325121889,1714526841412,-151.9069551,0.00086609,120]
[325121890,1714526841433,-151.9069551,0.00086972,120]
[325121891,1714526841453,-151.9069551,0.00109107,120]
[325121892,1714526841474,-166.666666,0.00120317,2]
[325121893,1714526841495,-4709.4520605,0.00122772,30]
[325121896,1714526961127,-153.21482082,0.00054291,60]
[325121897,1714526961149,-151.9069551,0.00069382,120]
[325121898,1714526961170,-351.59556393,0.00070598,2]
[325121899,1714526961280,-153.21482082,0.00070698,120]
[325121900,1714526961302,-153.21482082,0.00075557,120]
[325121901,1714526961324,-151.9069551,0.00077062,120]
[325121902,1714526961344,-154.64623115,0.00088652,120]
[325121903,1714526961364,-167.56295914,0.00092089,120]
[325121904,1714526961387,-153.21482082,0.00092783,120]
[325121905,1714526961406,-351.59556391,0.00096998,2]
[325121906,1714526961428,-151.9069551,0.00097338,120]
[325121907,1714526961449,-2000.0,0.00112,120]
[325121908,1714526961470,-2000.0,0.00112,120]
[325121909,1714526961489,-2000.0,0.00112,120]
[325121910,1714526961509,-2000.0,0.00112,120]
[325121911,1714526961534,-167.56295914,0.00114802,120]
[325121912,1714526961554,-151.9069551,0.00115206,120]
[325121913,1714526961576,-167.56295914,0.00117335,120]
[325121914,1714526961596,-153.21482082,0.0011783,120]
[325121915,1714526961620,-154.64623115,0.00121534,120]
[325121916,1714526961644,-200.0,0.00122526,120]
[325121917,1714526961666,-2500.0,0.00122771,30]
[325121918,1714526961687,-20190.5479395,0.00122772,30]
[325121919,1714526961709,-639.28787535,0.00123497,14]
[325121920,1714526961736,-166.666666,0.00123597,2]
[325121921,1714526961758,-151.9069551,0.00125701,120]
[325121922,1714526961779,-166.666666,0.00126877,2]
[325121923,1714526961800,-167.56295914,0.00127765,120]
[325121924,1714526961820,-166.666666,0.00130157,2]
[325121925,1714526961840,-151.9069551,0.00133237,120]
[325121926,1714526961861,-166.666666,0.00133438,2]
[325121927,1714526961884,-150.0,0.00134092,3]
[325121928,1714526961905,-166.666666,0.00136718,2]
[325121929,1714526961926,-153.89720645,0.00149158,120]
[325121930,1714526961948,-283.0,0.00151404,120]
[325121931,1714526961969,-283.0,0.00154437,120]
[325121932,1714526961994,-167.56295914,0.0015564,120]
[325121933,1714526962015,-283.0,0.00159071,120]
[325121934,1714526962036,-283.0,0.00159071,120]
[325121935,1714526962056,-151.9069551,0.00159415,120]
[325121936,1714526962077,-151.9069551,0.0015967,120]
[325121937,1714526962097,-153.89720645,0.00160493,120]
[325121938,1714526962118,-283.0,0.00163537,120]
[325121939,1714526962140,-283.0,0.00164366,120]
[325121940,1714526962160,-283.0,0.0016657,120]
[325121941,1714526962179,-283.0,0.00169603,120]
[325121942,1714526962199,-283.0,0.0016966,120]
[325121943,1714526962217,-283.0,0.00174955,120]
[325121944,1714526962236,-283.0,0.00178702,120]
[325121945,1714526962256,-151.9069551,0.0017945,120]
[325121946,1714526962276,-151.9069551,0.00180142,120]
[325121947,1714526962296,-271.0,0.00181735,120]
[325121948,1714526962315,-271.0,0.00184768,120]
[325121949,1714526962335,-868.83516785,0.00185,120]
[325121950,1714526962354,-2000.0,0.00185,120]
[325121951,1714526962373,-151.9069551,0.00185438,120]
[325121952,1714526962393,-167.56295914,0.00187169,120]
[325121953,1714526962413,-283.0,0.00187801,120]
[325121954,1714526962432,-271.0,0.00190835,120]
[325121955,1714526962451,-271.0,0.00190835,120]
[325121956,1714526962471,-2000.0,0.00192,120]
[325121957,1714526962490,-156.79615499,0.00193,120]
[325121958,1714526962510,-271.0,0.00193868,120]
[325121959,1714526962534,-283.0,0.00196901,120]
[325121960,1714526962553,-271.0,0.00196901,120]
[325121961,1714526962574,-271.0,0.00196901,120]
[325121962,1714526962594,-271.0,0.00199934,120]
[325121963,1714526962618,-190.52620762,0.002,30]
[325121964,1714526962638,-425.00000007,0.002,120]
[325121965,1714526962657,-271.0,0.00202967,120]
[325121966,1714526962676,-271.0,0.00202967,120]
[325121967,1714526962696,-271.0,0.00202967,120]
[325121968,1714526962717,-167.56295914,0.00205042,120]
[325121969,1714526962737,-283.0,0.00206,120]
[325121970,1714526962758,-151.9069551,0.0020725,120]
[325121971,1714526962779,-9041.15444194,0.0021,120]
[325121972,1714526969154,-10958.84555806,0.0021,120]
[325121973,1714526969174,-283.0,0.00212066,120]
[325121974,1714526969193,-271.0,0.00212066,120]
[325121975,1714526969211,-271.0,0.00212066,120]
[325121976,1714526969230,-283.0,0.00215099,120]
[325121977,1714526969249,-151.9069551,0.0021534,120]
[325121978,1714526969342,-500.0,0.00219178,120]
[325121979,1714526969362,-500.0,0.00219178,120]
[325121980,1714526969384,-500.0,0.00219178,120]
[325121981,1714526969418,-500.0,0.00219178,120]
[325121982,1714526969439,-500.0,0.00219178,120]
[325121983,1714526969462,-500.0,0.00219178,120]
[325121984,1714526969484,-500.0,0.00219178,120]
[325121985,1714526969505,-476.00827288,0.00219178,120]
[325121986,1714526969531,-500.0,0.00219999,120]
[325121987,1714526969552,-500.0,0.00219999,120]
[325121988,1714526969572,-500.0,0.00219999,120]
[325121989,1714526969592,-500.0,0.00219999,120]
[325121990,1714526969612,-500.0,0.00219999,120]
[325121991,1714526969632,-274.84268687,0.00219999,120]
[325121992,1714526969652,-500.0,0.00219999,120]
[325121993,1714526969672,-500.0,0.00219999,120]
[325121994,1714526969692,-500.0,0.00219999,120]
[325121995,1714526969713,-500.0,0.00219999,120]
[325121996,1714526969733,-500.0,0.00219999,120]
[325121997,1714526969752,-503.03698532,0.00219999,120]
[325121998,1714526969771,-500.0,0.00219999,120]
[325121999,1714526969791,-364.37724221,0.00219999,20]
[325122000,1714526969811,-500.0,0.00219999,120]
[325122001,1714526969833,-500.0,0.00219999,120]
[325122002,1714526969853,-500.0,0.00219999,120]
[325122003,1714526969874,-500.0,0.00219999,120]
[325122004,1714526969894,-500.0,0.00219999,120]
[325122005,1714526969914,-304.84164494,0.00219999,21]
[325122006,1714526971096,-195.15835506,0.00219999,21]
[325122007,1714526971116,-54.84346671,0.00219999,120]
[325122008,1714527018458,-195.1774,0.00056968,30]
[325122009,1714527018488,-500.0,0.0007,120]
[325122010,1714527018517,-156.83600227,0.00087945,120]
[325122011,1714527018549,-156.83600227,0.00087945,120]
[325122012,1714527018582,-156.83600227,0.00087945,120]
[325122013,1714527018612,-156.83600227,0.00087945,120]
[325122014,1714527018646,-156.83600227,0.00087945,120]
[325122015,1714527018681,-156.83600227,0.00087945,120]
[325122016,1714527018710,-156.83600227,0.00087945,120]
[325122017,1714527018741,-156.83600227,0.00087945,120]
[325122018,1714527018768,-156.83600227,0.00087945,120]
[325122019,1714527018796,-156.83600227,0.00087945,120]
[325122020,1714527018824,-156.83600227,0.00087945,120]
[325122021,1714527018853,-156.83600227,0.00087945,120]
[325122022,1714527018881,-156.83600227,0.00087945,120]
[325122023,1714527018909,-156.83600227,0.00087945,120]
[325122024,1714527018941,-156.83600227,0.00087945,120]
[325122025,1714527018975,-156.83600227,0.00087945,120]
[325122026,1714527019003,-156.83600227,0.00087945,120]
[325122027,1714527019121,-156.83600227,0.00087945,120]
[325122028,1714527019148,-156.83600227,0.00087945,120]
[325122029,1714527019180,-157.33,0.00087945,120]
[325122030,1714527019215,-163.97984397,0.00087945,120]
[325122031,1714527019244,-163.97984397,0.00087945,120]
[325122032,1714527019272,-163.97984397,0.00087945,120]
[325122033,1714527019300,-163.97984397,0.00087945,120]
[325122034,1714527019326,-164.47,0.00087945,120]
[325122035,1714527019352,-351.59556391,0.00123397,16]
[325122103,1714527033069,-2000.0,0.00185,120]
[325122105,1714527033078,-2000.0,0.00185,120]
[325122107,1714527033088,-2000.0,0.00185,120]
[325122109,1714527033097,-2000.0,0.00185,120]
[325122111,1714527033107,-2000.0,0.00185,120]
[325122113,1714527033116,-362.5124,0.001899,120]
[325122115,1714527033125,-154.73694719,0.002,30]
[325122117,1714527033134,-500.0,0.002,120]
[325122119,1714527033143,-500.0,0.002,120]
[325122120,1714527033152,-627.41900909,0.0021,120]
[325122122,1714527033162,-164.05484397,0.0021,120]
[325122124,1714527033171,-500.0,0.00219178,21]
[325122126,1714527033182,-500.0,0.00219178,120]
[325122128,1714527033191,-304.32,0.00219178,120]
[325122130,1714527033200,-500.0,0.00219178,120]
[325122132,1714527033209,-500.0,0.00219178,120]
[325122134,1714527033218,-500.0,0.00219178,120]
[325122136,1714527033227,-511.27832617,0.00219178,120]
[325122138,1714527033236,-500.0,0.00219178,120]
[325122140,1714527033245,-500.0,0.00219178,120]
[325122142,1714527033254,-174.55885841,0.00219997,30]
[325122143,1714527033263,-182.95117931,0.00219997,30]
[325122144,1714527033272,-904.61226945,0.00219998,30]
[325122145,1714527033282,-1608.78436868,0.00219998,60]
[325122146,1714527033291,-445.15653329,0.00219999,120]
[325122147,1714527033300,-500.0,0.00219999,120]
[325122148,1714527033309,-500.0,0.00219999,120]
[325122149,1714527033318,-500.0,0.00219999,120]
[325122150,1714527033328,-500.0,0.00219999,120]
[325122151,1714527033337,-500.0,0.00219999,120]
[325122152,1714527033347,-500.0,0.00219999,120]
[325122153,1714527033356,-500.0,0.00219999,120]
[325122154,1714527033365,-500.0,0.00219999,120]
[325122155,1714527033375,-500.0,0.00219999,120]
[325122157,1714527033384,-500.0,0.00219999,120]
[325122159,1714527033393,-500.0,0.00219999,120]
[325122161,1714527033403,-500.0,0.00219999,120]
[325122162,1714527033411,-500.0,0.00219999,120]
[325122163,1714527033420,-500.0,0.00219999,120]
[325122164,1714527033430,-500.0,0.00219999,120]
[325122165,1714527033440,-4411.3,0.00219999,120]
[325122166,1714527033449,-1938.35,0.00219999,120]
[325122167,1714527033458,-500.0,0.00219999,120]
[325122168,1714527033467,-500.0,0.00219999,120]
[325122169,1714527033476,-500.0,0.00219999,120]
[325122170,1714527033485,-500.0,0.00219999,120]
[325122171,1714527033495,-500.0,0.00219999,120]
[325122172,1714527033504,-500.0,0.00219999,120]
[325122173,1714527033513,-500.0,0.00219999,120]
[325122174,1714527033522,-500.0,0.00219999,60]
[325122175,1714527033531,-500.0,0.00219999,120]
[325122176,1714527033542,-1249.99,0.00219999,120]
[325122177,1714527033553,-500.0,0.00219999,120]
[325122178,1714527033562,-500.0,0.00219999,120]
[325122179,1714527033571,-500.0,0.00219999,120]
[325122180,1714527033580,-500.0,0.00219999,120]
[325122181,1714527033589,-500.0,0.00219999,120]
[325122182,1714527033598,-500.0,0.00219999,120]
[325122183,1714527033607,-118.34062647,0.00219999,120]
[325122184,1714527033692,-381.65937353,0.00219999,120]
[325122185,1714527033702,-500.0,0.00219999,120]
[325122186,1714527033711,-12646.38,0.00219999,120]
[325122187,1714527033720,-500.0,0.00219999,120]
[325122188,1714527033729,-500.0,0.00219999,120]
[325122189,1714527033739,-500.0,0.00219999,7]
[325122190,1714527033749,-500.0,0.00219999,120]
[325122191,1714527033758,-500.0,0.00219999,120]
[325122192,1714527033767,-500.0,0.00219999,120]
[325122193,1714527033776,-500.0,0.00219999,120]
[325122194,1714527033786,-500.0,0.00219999,120]
[325122195,1714527033795,-277.85,0.00219999,120]
[325122196,1714527033804,-500.0,0.00219999,120]
[325122197,1714527033814,-500.0,0.00219999,120]
[325122198,1714527033824,-500.0,0.00219999,120]
[325122199,1714527033836,-500.0,0.00219999,120]
[325122200,1714527033846,-500.0,0.00219999,120]
[325122201,1714527033855,-505.16959624,0.00219999,120]
[325122202,1714527033864,-500.0,0.00219999,120]
[325122203,1714527033873,-500.0,0.00219999,120]
[325122204,1714527033882,-665.16454459,0.00219999,120]
[325122205,1714527033891,-1236.91,0.00219999,120]
[325122206,1714527033900,-8562.50862451,0.0022,120]
[325122241,1714527039044,-700.000001,0.00219,120]
[325122243,1714527039054,-454.18497976,0.00219178,120]
[325122246,1714527039065,-55.29371673,0.00219178,120]
[325122248,1714527039075,-500.0,0.00219178,120]
[325122250,1714527039084,-500.0,0.00219999,120]
[325122252,1714527039093,-11437.49137549,0.0022,120]
[325122254,1714527039102,-627.41900909,0.0022,120]
[325122256,1714527039112,-164.05484397,0.0022,120]
[325122258,1714527039121,-283.0,0.00224199,120]
[325122260,1714527039130,-1914.31,0.0022999,3]
[325122262,1714527039139,-3627.91,0.0022999,3]
[325122264,1714527039149,-20000.0,0.0023,120]
[325122266,1714527039158,-627.41900909,0.0023,120]
[325122268,1714527039167,-164.05484397,0.0023,120]
[325122270,1714527039176,-283.0,0.00230265,120]
[325122272,1714527039187,-271.0,0.00230265,120]
[325122274,1714527039196,-500.0,0.00232876,120]
[325122275,1714527039205,-500.0,0.00232876,120]
[325122277,1714527039215,-500.0,0.00232876,21]
[325122279,1714527039224,-500.0,0.00232876,120]
[325122281,1714527039233,-500.0,0.00232876,120]
[325122283,1714527039242,-500.0,0.00232876,120]
[325122285,1714527039251,-500.0,0.00232876,120]
[325122287,1714527039260,-500.0,0.00232876,120]
[325122289,1714527039269,-500.0,0.00232876,120]
[325122291,1714527039278,-500.0,0.00232876,120]
[325122293,1714527039288,-500.0,0.00233297,120]
[325122295,1714527039296,-271.0,0.00233298,120]
[325122297,1714527039306,-566.74,0.00233698,120]
[325122299,1714527039315,-580.82,0.00233698,120]
[325122302,1714527039324,-500.0,0.00233698,120]
[325122304,1714527039333,-500.0,0.00233698,120]
[325122305,1714527039344,-500.0,0.00233698,120]
[325122307,1714527039355,-500.0,0.00233698,120]
[325122309,1714527039365,-500.0,0.00233698,120]
[325122311,1714527039374,-163.80760333,0.00233698,120]
[325122313,1714527039383,-646.72,0.00233698,120]
[325122315,1714527039393,-359.98803871,0.00233698,120]
[325122317,1714527039402,-500.0,0.00233698,120]
[325122320,1714527039411,-500.0,0.00233698,120]
[325122321,1714527039421,-375.79202182,0.00233698,120]
[325122323,1714527039432,-500.0,0.00233698,120]
[325122325,1714527039441,-626.29,0.00233698,120]
[325122327,1714527039450,-500.0,0.00233698,120]
[325122329,1714527039460,-500.0,0.00233698,120]
[325122331,1714527039469,-500.0,0.00233698,120]
[325122333,1714527039479,-500.0,0.00233698,120]
[325122335,1714527039487,-500.0,0.00233698,120]
[325122337,1714527039497,-500.0,0.00233698,120]
[325122339,1714527039507,-4411.3,0.00233698,120]
[325122341,1714527039516,-1938.35,0.00233698,120]
[325122343,1714527039526,-534.82,0.00233698,120]
[325122345,1714527039537,-500.0,0.00233698,120]
[325122348,1714527039554,-1249.99,0.00233698,120]
[325122350,1714527039568,-500.0,0.00233698,120]
[325122353,1714527039582,-500.0,0.00233698,120]
[325122355,1714527039596,-3819.4295378,0.00233698,120]
[325122358,1714527039613,-2228.6810918,0.00233698,120]
[325122505,1714527041017,-638.36546201,0.00219899,14]
[325122507,1714527041030,-250.76015273,0.00233698,120]
[325122529,1714527041236,-1906.31505504,0.00233698,120]
[325122532,1714527041251,-827.21261507,0.00233698,120]
[325122535,1714527041271,-299.99689001,0.00233698,120]
[325122837,1714527044372,-501.77474642,0.00219178,120]
[325122839,1714527044383,-500.0,0.00219999,120]
[325122842,1714527044395,-1933.25838062,0.00233698,120]
[325123109,1714527047013,-500.0,0.002,120]
[325123111,1714527047024,-500.0,0.00219178,120]
[325123113,1714527047035,-500.0,0.00219178,120]
[325123115,1714527047046,-500.0,0.00219998,120]
[325123118,1714527047057,-260.1621221,0.00219999,120]
[325123266,1714527609719,-166.666666,0.00036364,2]
[325123267,1714527609745,-166.666666,0.00037356,2]
[325123268,1714527609772,-166.666666,0.00038347,2]
[325123269,1714527609798,-166.666666,0.00039338,2]
[325123270,1714527609824,-19462.30335522,0.00040038,4]
[325123271,1714527609849,-664.55379019,0.0004023,9]
[325123272,1714527609878,-166.666666,0.0004033,2]
[325123273,1714527609904,-252.7509919,0.00041,2]
[325123274,1714527609930,-166.666666,0.00041321,2]
[325123275,1714527609956,-198.090691,0.00041705,120]
[325123276,1714527609982,-154.08597135,0.00041838,30]
[325123277,1714527610007,-200.0,0.00045268,2]
[325123278,1714527610032,-371.20394056,0.00047348,4]
[325123279,1714527610058,-154.70605849,0.00047349,4]
[325123280,1714527610084,-183.8697233,0.00047361,2]
[325123281,1714527610111,-24900.0,0.00048611,2]
[325123282,1714527611443,1096.76200419,0.00047347,2]
[325123284,1714527920221,362.38148801,9.999e-05,2]
[325123285,1714527939360,-362.38148801,0.00020913,2]
[325123286,1714527939382,-112.14541564,0.00028,2]
[325123287,1714527945017,1880.12188062,9.999e-05,2]
[325123288,1714527952354,-230.80926122,0.00028,2]
[325123289,1714527952375,-466.46671286,0.00034,4]
[325123290,1714527952397,-189.87196191,0.00041,2]
[325123291,1714527952417,-7.11135593,0.0005,120]
[325123293,1714528035105,-529.36908946,0.00020912,2]
[325123294,1714528037144,-483.42641308,0.00020912,2]
[325123295,1714528051088,500.0,0.00022,120]
[325123296,1714528111710,475.3346953,9.999e-05,2]
[325123297,1714528150006,-154.70605849,0.00020599,2]
[325123298,1714528150032,-24900.0,0.000206,2]
[325123299,1714528150060,-870.1822216,0.00020912,2]
[325123300,1714528150168,-475.3346953,0.00020912,2]
[325123301,1714528150196,-362.77930733,0.00020913,2]
[325123302,1714528150222,-203.0519957,0.00021028,2]
[325123303,1714528150249,-166.666666,0.00021931,2]
[325123304,1714528150276,-166.666666,0.00022529,2]
[325123305,1714528150303,-166.666666,0.00023127,2]
[325123306,1714528150329,-166.666666,0.00023725,2]
[325123307,1714528150356,-166.666666,0.00024323,2]
[325123308,1714528150383,-166.666666,0.0002492,2]
[325123309,1714528150411,-5000.0,0.00026,2]
[325123310,1714528150438,-466.46671286,0.00034,4]
[325123311,1714528150468,-155.17,0.00036,2]
[325123312,1714528150496,-3023.26,0.00042243,3]
[325123313,1714528150523,-2519.38,0.00042243,3]
[325123314,1714528150549,-6259.54,0.00042252,7]
[325123315,1714528150575,-6259.54,0.00042252,7]
[325123316,1714528150602,-698607.25340217,0.00042253,120]
[325123317,1714528150630,-151.0,0.0005,120]
[325123318,1714528150654,-198.090691,0.00053895,120]
[325123319,1714528150676,-150.69860279,0.0006088,2]
[325123320,1714528150696,-159.61687813,0.00071249,120]
[325123321,1714528150716,-150.69860279,0.0009132,2]
[325123322,1714528150737,-16.86913911,0.00096386,120]
[325123323,1714528172128,-475.3346953,0.00020913,2]
[325123324,1714528172148,-783.21379501,0.00026,2]
[325123325,1714528172167,-466.46671286,0.00034,4]
[325123326,1714528172187,-154.70605849,0.00069,7]
[325123327,1714528172207,-142.74773902,0.00096386,120]
[325123328,1714528172226,-500.0,0.001,120]
[325123329,1714528172246,-500.0,0.001,120]
[325123330,1714528172265,-500.0,0.001,120]
[325123331,1714528172288,-500.0,0.001,120]
[325123332,1714528172387,-500.0,0.001,120]
[325123333,1714528172409,-500.0,0.001,120]
[325123334,1714528172429,-500.0,0.001,120]
[325123335,1714528172450,-9938.90142614,0.00114385,2]
[325123336,1714528172472,-500.0,0.00114385,120]
[325123337,1714528172492,-500.0,0.00114385,21]
[325123338,1714528172513,-500.0,0.00114385,120]
[325123339,1714528172533,-500.0,0.00114385,120]
[325123340,1714528172554,-500.0,0.00114385,120]
[325123341,1714528172576,-504.84379426,0.00114385,120]
[325123342,1714528172595,-500.0,0.00114385,120]
[325123343,1714528172615,-4068.62,0.00114385,120]
[325123344,1714528172634,-561.06081127,0.00114385,120]
[325123345,1714528172654,-500.0,0.00114385,120]
[325123346,1714528172673,-500.0,0.00114385,120]
[325123347,1714528172694,-500.0,0.00114385,120]
[325123348,1714528172714,-500.0,0.00114385,120]
[325123349,1714528172734,-503.00693864,0.00114385,120]
[325123350,1714528172756,-11658.36,0.00114385,120]
[325123351,1714528172778,-503.96570939,0.00114385,120]
[325123352,1714528172797,-188.37876188,0.00116041,120]
[325123353,1714528172818,-158.43583891,0.00121203,120]
[325123354,1714528172838,-159.61687813,0.0012342,120]
[325123355,1714528172857,-2000.0,0.00125,120]
[325123356,1714528172877,-283.28838567,0.00125343,120]
[325123357,1714528172902,-501.22007602,0.00125343,120]
[325123358,1714528172927,-424.89472744,0.00125344,120]
[325123359,1714528172952,-500.0,0.00125344,21]
[325123360,1714528172976,-500.0,0.00125344,120]
[325123361,1714528173003,-168.98953118,0.00125344,120]
[325123362,1714528173024,-500.0,0.00125344,120]
[325123363,1714528173045,-500.0,0.00125344,120]
[325123364,1714528173068,-4068.62,0.00125344,120]
[325123365,1714528173088,-500.0,0.00125344,120]
[325123366,1714528173109,-500.0,0.00125344,120]
[325123367,1714528173130,-173.96856845,0.00125344,120]
[325123368,1714528173152,-500.0,0.00125344,120]
[325123369,1714528173173,-11658.36,0.00125344,120]
[325123370,1714528173194,-2000.0,0.00135,120]
[325123371,1714528173217,-500.0,0.00136302,120]
[325123372,1714528173237,-503.42686278,0.00136302,30]
[325123373,1714528173257,-503.18244759,0.00136302,120]
[325123374,1714528173277,-501.28024735,0.00136302,120]
[325123375,1714528173302,-516.17048376,0.00136302,120]
[325123376,1714528173336,-500.0,0.00136302,120]
[325123377,1714528173366,-740.68,0.00136302,120]
[325123378,1714528173393,-507.76510434,0.00136302,120]
[325123379,1714528173423,-500.0,0.00136302,120]
[325123380,1714528173450,-292.36005308,0.00136302,120]
[325123381,1714528173479,-500.0,0.00136302,120]
[325123382,1714528173507,-500.0,0.00136302,120]
[325123383,1714528173532,-301.78688122,0.00136302,7]
[325123384,1714528173556,-502.77129167,0.00136302,120]
[325123385,1714528173581,-317.79790342,0.00136302,120]
[325123386,1714528173605,-541.86795561,0.00136302,120]
[325123387,1714528173628,-1000.0,0.00136302,120]
[325123388,1714528173651,-500.0,0.00136302,120]
[325123389,1714528173672,-500.0,0.00136302,120]
[325123390,1714528173695,-538.84380992,0.00136302,120]
[325123391,1714528173721,-500.0,0.00136302,120]
[325123392,1714528173746,-500.0,0.00136302,120]
[325123393,1714528173771,-500.0,0.00136302,120]
[325123394,1714528173796,-348.35489215,0.00136302,120]
[325123395,1714528173823,-500.0,0.00136302,120]
[325123396,1714528173845,-500.0,0.00136302,120]
[325123397,1714528173866,-500.0,0.00136302,120]
[325123398,1714528173891,-500.0,0.00136302,120]
[325123399,1714528173922,-500.0,0.00136302,120]
[325123400,1714528173949,-1250.0,0.00136302,120]
[325123401,1714528173972,-500.0,0.00136303,21]
[325123402,1714528173998,-500.0,0.00136303,120]
[325123403,1714528174024,-500.0,0.00136303,120]
[325123404,1714528174047,-348.55332705,0.00136303,120]
[325123405,1714528174073,-4068.62,0.00136303,120]
[325123406,1714528174096,-500.0,0.00136303,120]
[325123407,1714528174120,-500.0,0.00136303,120]
[325123408,1714528174144,-500.0,0.00136303,120]
[325123409,1714528174167,-11658.36,0.00136303,120]
[325123410,1714528174191,-500.0,0.00136986,120]
[325123411,1714528174214,-2000.0,0.00145,120]
[325123412,1714528174236,-504.1258663,0.00147261,120]
[325123413,1714528174262,-638.02563971,0.00147261,120]
[325123414,1714528174287,-740.68,0.00147261,120]
[325123415,1714528174313,-177.49064703,0.00147261,120]
[325123416,1714528174337,-508.35815756,0.00147261,120]
[325123417,1714528174456,-500.0,0.00147261,120]
[325123418,1714528174479,-1000.0,0.00147261,120]
[325123419,1714528174501,-500.0,0.00147261,120]
[325123420,1714528174521,-504.44816417,0.00147261,120]
[325123421,1714528174541,-505.18375007,0.00147261,120]